bitfinex/quotes_ETHUSD_20241130
["timestamp","ask_amount","ask_price","bid_price","bid_amount"]
[1733003472138,2.68601,3723.0,3722.2,5.68656]
[1733003472309,2.68601,3723.0,3722.2,2.68656]
[1733003472508,0.03078557,3722.9,3722.8,2.84215486]
[1733003472697,0.062071,3725.0,3723.7,8.79921443]
[1733003472698,2.746701,3725.0,3723.7,8.79921443]
[1733003472898,2.746641,3725.0,3723.8,2.68542]
[1733003473140,0.02787007,3724.9,3724.8,2.6847]
[1733003473446,0.062071,3725.0,3724.6,2.68484]
[1733003473600,0.062071,3725.0,3724.7,2.68477]
[1733003473799,0.062071,3725.0,3724.9,2.68463]
[1733003474011,0.062071,3725.0,3724.9,5.68463]
[1733003475439,0.062071,3725.0,3724.9,7.7488216]
[1733003476030,0.03,3726.4,3724.9,7.7488216]
[1733003476031,8.60386528,3725.9,3725.7,3.0]
[1733003476218,8.60386528,3725.9,3725.8,2.68398]
[1733003476552,8.60386528,3725.9,3725.8,7.32448]
[1733003479828,0.13,3728.0,3725.8,7.32448]
[1733003480029,1.53122106,3729.8,3726.8,0.89]
[1733003480252,55.50168521,3732.3,3732.2,3.44638]
[1733003480465,39.76250231,3732.3,3732.2,9.3153159]
[1733003480601,39.76250231,3732.3,3732.2,6.44638]
[1733003480801,39.76250231,3732.3,3732.2,3.44638]
[1733003481046,39.76250231,3732.3,3732.2,3.40762308]
[1733003481343,39.76250231,3732.3,3731.7,2.67972]
[1733003481344,38.32193752,3732.3,3731.7,0.1]
[1733003481557,38.32193752,3732.3,3732.2,0.1]
[1733003482108,38.32193752,3732.3,3732.2,5.77938]
[1733003482109,24.94371752,3732.3,3732.2,5.77938]
[1733003482351,24.94371752,3732.3,3732.2,0.1]
[1733003482533,24.77417692,3732.3,3732.2,3.2176]
[1733003482739,17.8095079,3732.3,3732.2,3.59330347]
[1733003483057,17.8095079,3732.3,3732.2,0.1176]
[1733003483205,17.8095079,3732.3,3732.2,0.1]
[1733003483407,19.59045869,3732.3,3732.2,0.1]
[1733003483636,19.59045869,3732.3,3731.3,0.0182]
[1733003483845,17.8095079,3732.3,3731.3,0.0182]
[1733003484215,20.4888479,3732.3,3731.3,0.0182]
[1733003484608,20.4888279,3732.3,3731.3,0.0182]
[1733003484954,20.4888279,3732.3,3730.2,0.0449919]
[1733003484955,20.4888879,3732.3,3730.2,0.0449919]
[1733003485249,2.67968,3731.8,3730.5,0.0267919]
[1733003485556,0.33425515,3731.8,3730.5,0.0267919]
[1733003485904,0.66287153,3731.9,3730.5,0.0267919]
[1733003486108,0.66287153,3731.9,3730.6,0.02679618]
[1733003486339,0.66287153,3731.9,3730.9,0.55]
[1733003486543,0.66287153,3731.9,3731.5,3.55]
[1733003486703,0.66287153,3731.9,3731.5,0.55]
[1733003486914,0.66287153,3731.9,3731.3,0.55]
[1733003487428,0.66287153,3731.9,3731.3,3.23001]
[1733003487762,0.66287153,3731.9,3731.6,0.0182]
[1733003488048,0.66287153,3731.9,3731.8,3.55]
[1733003488657,0.66287153,3731.9,3731.7,2.67971]
[1733003488658,0.66287153,3731.9,3731.7,3.0]
[1733003488820,0.66287153,3731.9,3731.6,0.0182]
[1733003489565,0.66287153,3731.9,3731.0,0.02679229]
[1733003489852,0.66287153,3731.9,3730.5,0.04499355]
[1733003490052,0.66287153,3731.9,3730.8,2.68037]
[1733003490291,0.66287153,3731.9,3730.9,0.02679259]
[1733003490488,0.66287153,3731.9,3731.1,2.68016]
[1733003490659,0.66287153,3731.9,3731.2,3.57679165]
[1733003491056,0.66287153,3731.9,3730.7,3.0]
[1733003491240,0.66287153,3731.9,3731.1,0.0182]
[1733003491444,0.66287153,3731.9,3731.8,3.0]
[1733003492089,0.66287153,3731.9,3731.8,4.072021]
[1733003494387,0.66287153,3731.9,3731.8,1.072021]
[1733003494556,0.66287153,3731.9,3731.3,3.0]
[1733003494764,0.66287153,3731.9,3731.7,1.072131]
[1733003495343,0.66287153,3731.9,3731.7,4.072131]
[1733003495543,0.66287153,3731.9,3731.7,1.072131]
[1733003495949,3.34248153,3731.9,3731.1,0.0182]
[1733003496150,3.34248153,3731.9,3731.3,1.072251]
[1733003496389,2.34248153,3731.9,3731.3,1.072251]
[1733003496572,0.41929337,3732.0,3731.3,1.072251]
[1733003499202,0.41929337,3732.0,3731.4,3.0]
[1733003500271,0.41929337,3732.0,3731.3,4.323751]
[1733003501473,0.41929337,3732.0,3731.3,3.2515]
[1733003501893,0.41929337,3732.0,3731.4,3.0]
[1733003502757,3.09882337,3732.0,3731.3,0.2515]
[1733003502954,2.67976,3731.7,3731.3,0.2515]
[1733003503159,2.23766172,3732.0,3731.3,0.2515]
[1733003503160,2.67995,3731.4,3731.3,0.2515]
[1733003503382,4.28825,3731.4,3731.3,0.2515]
[1733003504157,4.28825,3731.4,3731.3,0.07057245]
[1733003504360,4.985058,3731.4,3731.3,0.07057245]
[1733003506531,2.68055,3730.6,3729.9,3.0]
[1733003506673,2.68046,3730.7,3729.9,3.0]
[1733003506882,2.6807,3730.4,3729.7,3.0]
[1733003507189,2.6807,3730.4,3728.7,2.73765]
[1733003507190,2.6807,3730.4,3729.3,5.68146]
[1733003507499,2.68097,3730.0,3729.1,2.68159]
[1733003507911,2.68073,3730.4,3728.8,0.0268073]
[1733003508218,2.68098,3730.0,3728.8,2.7086173]
[1733003508387,4.29692,3730.2,3728.8,2.68181]
[1733003508583,1.6161,3731.3,3728.7,0.08260886]
[1733003508782,1.6161,3731.3,3730.3,2.68071]
[1733003509003,5.36027,3731.2,3730.3,2.68071]
[1733003509185,2.6803,3731.0,3730.1,3.0]
[1733003509412,2.68039,3730.8,3729.9,5.68101]
[1733003509717,2.68042,3730.8,3730.1,3.0]
[1733003510217,2.68042,3730.8,3729.9,3.0]
[1733003510419,2.68041,3730.8,3730.0,2.6809]
[1733003510589,2.68041,3730.8,3730.1,3.0]
[1733003511371,0.536064,3730.8,3730.1,3.0]
[1733003511573,2.68054,3730.6,3729.7,3.0]
[1733003511805,2.68047,3730.7,3729.7,3.0]
[1733003512006,2.68083,3730.2,3728.9,2.68175]
[1733003512175,2.68083,3730.2,3729.2,2.68151]
[1733003512375,2.68104,3729.9,3728.9,2.68175]
[1733003512576,2.68118,3729.7,3728.5,2.68204]
[1733003512798,2.68139,3729.5,3728.5,2.68204]
[1733003513014,1.6161,3730.4,3728.7,2.68184]
[1733003513218,1.6161,3730.4,3728.7,2.68189]
[1733003513219,2.68138,3729.5,3728.7,2.68189]
[1733003513428,2.84241,3730.3,3729.3,2.68141]
[1733003513726,2.84241,3730.3,3728.6,0.02681302]
[1733003513727,1.6161,3730.4,3729.5,2.68126]
[1733003514010,1.6161,3730.4,3729.2,2.68147]
[1733003514011,4.29677,3730.4,3729.2,2.68147]
[1733003514321,4.29677,3730.4,3728.8,0.02680717]
[1733003514322,2.6809,3730.1,3729.3,2.68142]
[1733003514529,2.6809,3730.1,3728.8,0.02680717]
[1733003514677,4.29677,3730.4,3729.5,3.0]
[1733003514874,1.6161,3730.4,3729.7,2.68112]
[1733003515107,1.6161,3730.4,3729.2,3.0]
[1733003515319,1.6161,3730.4,3729.7,2.68117]
[1733003515521,0.1,3731.8,3730.0,2.68095]
[1733003515522,1.6161,3731.4,3730.0,2.68095]
[1733003515722,2.68038,3730.9,3730.0,2.68095]
[1733003516215,2.68046,3730.7,3730.0,2.68095]
[1733003516416,2.68041,3730.8,3729.8,3.0]
[1733003516647,4.29612,3731.4,3729.9,2.68097]
[1733003516846,2.68045,3730.8,3730.0,2.68096]
[1733003517348,2.68045,3730.8,3730.1,2.68087]
[1733003518008,2.68045,3730.8,3729.9,2.68103]
[1733003518009,2.6801,3731.2,3730.2,2.68078]
[1733003518208,2.68034,3730.9,3730.2,2.68078]
[1733003518434,2.68017,3731.2,3730.2,2.68078]
[1733003518746,3.1537582,3731.2,3730.2,2.68077]
[1733003518906,2.68031,3731.0,3730.2,2.68081]
[1733003519706,2.68031,3731.0,3730.3,2.68073]
[1733003520349,2.68028,3731.0,3730.3,2.68069]
[1733003520552,1.6101,3731.1,3730.3,2.68069]
[1733003520553,4.29028,3731.1,3730.3,2.68071]
[1733003520709,4.29028,3731.1,3729.7,2.70798341]
[1733003520710,2.35450182,3731.1,3730.5,2.68059]
[1733003521131,2.35450182,3731.1,3730.6,0.0268034]
[1733003521132,1.6101,3731.1,3730.6,0.0268034]
[1733003521325,1.6101,3731.7,3730.2,3.0]
[1733003521648,1.6101,3731.7,3731.3,2.68001]
[1733003522513,1.6032,3732.2,3731.0,2.68024]
[1733003522709,1.6032,3732.2,3731.5,2.67983]
[1733003522951,1.6032,3732.2,3731.0,2.68017]
[1733003523208,3.34239975,3731.9,3731.0,2.68017]
[1733003523410,3.34239975,3731.9,3731.0,2.73597]
[1733003523411,0.66274975,3731.9,3731.0,2.73597]
[1733003523647,0.66274975,3731.9,3731.2,2.68007]
[1733003524055,0.66274975,3731.9,3731.0,0.0558]
[1733003524228,0.66274975,3731.9,3731.6,2.6798]
[1733003524429,0.66274975,3731.9,3731.3,2.67999]
[1733003524643,0.66274975,3731.9,3731.4,2.6799]
[1733003525342,0.66274975,3731.9,3730.8,2.68034]
[1733003525524,2.67968,3731.8,3730.9,3.0]
[1733003525713,2.67968,3731.8,3730.8,2.68035]
[1733003525714,2.67975,3731.7,3730.8,3.0]
[1733003526054,2.68004,3731.3,3730.5,3.0]
[1733003526211,1.6032,3731.5,3730.3,5.43062334]
[1733003526415,2.68038,3730.9,3730.1,5.43062334]
[1733003527240,2.68002,3731.4,3730.2,2.68082]
[1733003527553,2.68002,3731.4,3730.3,5.43062334]
[1733003527757,2.68002,3731.4,3730.4,3.0]
[1733003527963,2.68015,3731.2,3730.4,3.0]
[1733003528259,2.68034,3730.9,3730.2,3.0]
[1733003529532,2.68014,3731.2,3730.2,3.0]
[1733003529839,2.67997,3731.4,3730.4,3.0]
[1733003530022,2.68003,3731.3,3730.4,3.0]
[1733003530221,2.68055,3730.6,3730.0,5.43062334]
[1733003530458,2.68067,3730.5,3729.9,5.43062334]
[1733003530666,2.68055,3730.6,3729.4,2.73714]
[1733003530667,2.68067,3730.4,3729.7,5.43062334]
[1733003530959,2.68078,3730.3,3729.4,5.48642334]
[1733003531134,2.68078,3730.3,3729.5,5.43062334]
[1733003531330,2.68078,3730.3,3729.4,5.48642334]
[1733003531531,2.68078,3730.3,3729.4,0.0558]
[1733003532074,2.68078,3730.3,3729.4,3.0558]
[1733003532535,1.662,3730.9,3729.0,5.43062334]
[1733003532536,2.68106,3729.9,3729.0,5.43062334]
[1733003532871,2.68019,3731.1,3728.8,5.43062334]
[1733003532872,0.1,3731.0,3728.8,5.43062334]
[1733003533034,2.68142,3729.4,3728.7,0.0558]
[1733003533362,2.68134,3729.5,3728.6,2.68195]
[1733003533528,2.68134,3729.5,3728.7,2.68189]
[1733003534534,2.68118,3729.7,3728.8,5.68181]
[1733003534749,2.68127,3729.6,3728.8,5.68181]
[1733003534954,2.68125,3729.6,3728.5,0.02681196]
[1733003535165,2.68125,3729.6,3728.9,3.0]
[1733003535850,1.662,3729.8,3728.6,0.02681196]
[1733003535851,2.68118,3729.7,3728.6,0.02681196]
[1733003536056,2.68126,3729.6,3728.9,3.0]
[1733003536654,1.662,3731.0,3729.7,0.0558]
[1733003536852,1.662,3731.0,3730.3,2.68068]
[1733003537077,5.00436975,3731.9,3730.4,0.02680241]
[1733003537248,0.50043698,3731.8,3730.9,2.68029]
[1733003537448,2.6798,3731.7,3730.8,3.0]
[1733003537644,2.6798,3731.7,3730.9,2.68031]
[1733003537843,0.4195029,3731.5,3730.7,5.68042]
[1733003538137,0.4195029,3731.5,3730.9,3.0]
[1733003539255,0.4195029,3731.5,3731.0,2.68021]
[1733003539468,0.4195029,3731.5,3730.9,3.0]
[1733003540283,2.32474975,3731.9,3731.0,2.68018]
[1733003540480,2.32474975,3731.9,3731.2,2.68006]
[1733003540855,2.32474975,3731.9,3731.0,0.0558]
[1733003540856,0.66274975,3731.9,3731.0,0.0558]
[1733003541040,0.66274975,3731.9,3731.8,2.67967]
[1733003541552,0.66274975,3731.9,3731.8,5.67967]
[1733003542178,0.66274975,3731.9,3731.8,6.22967]
[1733003542483,0.66274975,3731.9,3731.8,6.28547]
[1733003544473,15.13019612,3732.3,3732.2,2.67938]
[1733003544785,12.45087612,3732.3,3732.2,6.22938]
[1733003544990,12.45087612,3732.3,3732.2,6.28518]
[1733003545184,11.88313242,3732.3,3732.2,6.28518]
[1733003545492,5.18483242,3732.3,3732.2,6.61911961]
[1733003546045,9.02819905,3732.4,3732.3,3.55]
[1733003546362,25.0,3733.0,3732.9,6.28468]
[1733003548291,25.0,3733.0,3732.9,5.73468]
[1733003549845,25.0,3733.0,3732.9,6.28468]
[1733003553790,25.0,3733.0,3732.9,2.67888]
[1733003553997,23.66059,3733.0,3732.9,2.70566418]
[1733003554259,16.76787668,3733.0,3732.9,2.73468]
[1733003554421,0.66231925,3734.4,3733.7,0.0558]
[1733003554709,0.66231925,3734.4,3734.3,2.67787]
[1733003554874,0.66231925,3734.4,3734.3,2.73367]
[1733003555204,11.75756146,3734.6,3734.5,6.38353]
[1733003555501,56.41792357,3734.9,3734.8,6.32751]
[1733003555702,56.41792357,3734.9,3734.8,6.22751]
[1733003556106,46.88964955,3734.9,3734.8,6.22751]
[1733003556408,20.91494459,3734.9,3734.8,7.40991278]
[1733003556565,11.53667057,3734.9,3734.8,7.40991278]
[1733003556767,11.53667057,3734.9,3734.8,7.03278748]
[1733003557003,2.15839655,3734.9,3734.8,7.03278748]
[1733003557305,2.15839655,3734.9,3734.8,6.57594702]
[1733003558373,2.15839655,3734.9,3734.8,6.22751]
[1733003558566,2.15839655,3734.9,3734.8,6.24401]
[1733003559474,0.0330084,3735.7,3735.6,2.67694]
[1733003559777,0.0330084,3735.7,3735.6,6.25369735]
[1733003559976,0.0330084,3735.7,3735.6,6.22694]
[1733003560215,0.0330084,3735.7,3735.6,5.67694]
[1733003560422,0.0330084,3735.7,3735.1,3.0]
[1733003560577,0.0330084,3735.7,3734.8,0.0165]
[1733003560578,0.18779924,3735.7,3734.8,0.0165]
[1733003560780,1.5149,3735.2,3734.8,0.0165]
[1733003561324,2.67701,3735.5,3734.8,0.0165]
[1733003561474,2.67711,3735.4,3734.8,0.0165]
[1733003562147,2.67725,3735.2,3734.8,0.0165]
[1733003562353,1.5479084,3735.7,3734.8,0.0165]
[1733003562502,2.67717,3735.3,3734.8,0.0165]
[1733003563245,4.29624,3734.9,3734.8,0.0165]
[1733003563548,1.6188,3735.6,3734.8,0.0165]
[1733003564044,2.67709,3735.4,3734.8,0.0165]
[1733003564228,4.29576,3735.6,3734.8,0.0165]
[1733003564229,1.6188,3735.6,3734.8,0.0165]
[1733003565214,0.0330084,3735.7,3734.9,2.67744]
[1733003565409,0.0330084,3735.7,3735.1,2.67724]
[1733003565610,0.0330084,3735.7,3735.0,3.0]
[1733003565812,0.0330084,3735.7,3735.0,2.67737]
[1733003566353,0.0330084,3735.7,3735.3,3.0]
[1733003566554,0.0330084,3735.7,3734.8,0.043265]
[1733003566555,0.0330084,3735.7,3735.6,2.67694]
[1733003566722,0.0330084,3735.7,3735.6,5.67694]
[1733003568627,0.0330084,3735.7,3735.6,5.94554]
[1733003568829,0.0330084,3735.7,3735.6,5.67694]
[1733003572777,0.0330084,3735.7,3735.1,0.30829959]
[1733003572982,0.0330084,3735.7,3734.8,0.0165]
[1733003573546,0.0330084,3735.7,3734.8,2.694]
[1733003573937,0.0330084,3735.7,3734.8,0.0165]
[1733003574184,0.0330084,3735.7,3734.8,2.694]
[1733003574376,0.0330084,3735.7,3734.8,0.0165]
[1733003574541,0.0330084,3735.7,3734.9,3.0]
[1733003574941,0.0330084,3735.7,3735.1,3.0]
[1733003575480,0.0330084,3735.7,3735.1,5.67726]
[1733003576291,0.0330084,3735.7,3735.0,3.0]
[1733003576444,0.0330084,3735.7,3734.8,0.0165]
[1733003576858,0.0330084,3735.7,3735.1,3.0]
[1733003577196,0.0330084,3735.7,3735.0,2.67731]
[1733003577197,0.0330084,3735.7,3735.0,3.0]
[1733003578119,0.0330084,3735.7,3734.8,0.0165]
[1733003578120,2.67703,3735.5,3734.8,0.0165]
[1733003578460,2.67707,3735.5,3734.8,0.0165]
[1733003578712,2.67704,3735.5,3734.8,0.0165]
[1733003578863,1.5867,3735.6,3734.8,0.0165]
[1733003579169,2.67709,3735.4,3734.8,0.0165]
[1733003579374,2.67713,3735.4,3734.8,0.0165]
[1733003579683,2.67712,3735.4,3734.8,0.0165]
[1733003580059,4.26366,3735.6,3734.8,0.0165]
[1733003580297,1.5867,3735.6,3734.8,2.694]
[1733003580501,1.5867,3735.6,3734.9,2.67743]
[1733003580685,1.5867,3735.6,3734.9,2.67744]
[1733003580887,1.5867,3735.6,3735.3,2.67715]
[1733003581563,0.0330084,3735.7,3735.0,3.0]
[1733003581760,0.0330084,3735.7,3735.3,2.67713]
[1733003581979,0.0330084,3735.7,3735.5,2.677]
[1733003582161,0.0330084,3735.7,3735.4,2.67708]
[1733003582576,0.0330084,3735.7,3735.2,3.0]
[1733003582900,1.6103,3735.6,3735.0,3.0]
[1733003583105,1.6103,3735.6,3734.8,0.0165]
[1733003583311,4.28729,3735.6,3734.8,0.0165]
[1733003583465,2.67723,3735.2,3734.8,0.0165]
[1733003583670,1.6103,3735.6,3734.8,0.0165]
[1733003583896,4.28726,3735.6,3734.8,0.0165]
[1733003584267,2.67702,3735.5,3734.8,0.0165]
[1733003586381,2.67709,3735.4,3734.8,0.0165]
[1733003587106,2.67716,3735.3,3734.8,0.0165]
[1733003588012,2.67744,3734.9,3734.8,0.0165]
[1733003588221,4.28774,3734.9,3734.8,0.0165]
[1733003593003,1.6103,3734.9,3733.1,0.02677773]
[1733003593202,1.6103,3734.9,3732.2,2.67938]
[1733003593203,2.67859,3733.3,3732.2,2.67938]
[1733003593408,2.67877,3733.1,3732.7,1.071762]
[1733003593731,2.67874,3733.1,3732.1,2.67944]
[1733003593888,2.67874,3733.1,3732.2,1.071859]
[1733003594791,4.28918,3732.9,3732.2,1.071859]
[1733003595091,4.28918,3732.9,3731.4,0.52539779]
[1733003595092,1.6103,3732.9,3731.7,2.67971]
[1733003595319,2.67897,3732.8,3731.7,2.67971]
[1733003595528,2.67903,3732.7,3731.5,3.77862266]
[1733003596397,2.67903,3732.7,3731.6,2.6798]
[1733003596598,2.67903,3732.7,3731.7,3.0]
[1733003596791,2.6791,3732.6,3731.5,4.071984]
[1733003596995,2.67941,3732.2,3731.5,1.071984]
[1733003597588,2.67983,3731.6,3730.5,2.68057]
[1733003597817,2.67983,3731.6,3731.0,1.072275]
[1733003598017,2.67968,3731.8,3730.5,2.68059]
[1733003598219,2.67989,3731.5,3730.6,1.072327]
[1733003598539,2.67974,3731.7,3730.6,1.072327]
[1733003598828,2.68004,3731.3,3730.2,2.68082]
[1733003599032,2.68011,3731.2,3730.2,1.072414]
[1733003599235,1.6113,3731.1,3730.2,1.072414]
[1733003599467,1.6113,3731.1,3729.7,0.02680174]
[1733003599740,2.67953,3732.0,3730.5,2.68053]
[1733003599892,2.67931,3732.3,3730.7,2.68044]
[1733003600088,2.67966,3731.9,3730.8,2.70713719]
[1733003600336,2.67966,3731.9,3729.9,1.072444]
[1733003600337,1.6113,3732.4,3730.6,0.02679718]
[1733003600536,0.16113,3732.3,3730.5,2.68057]
[1733003600692,2.67981,3731.7,3730.4,3.0]
[1733003600892,1.6113,3731.3,3730.1,3.0]
[1733003601100,4.29133,3731.3,3729.9,3.753424]
[1733003601306,1.6113,3731.3,3729.9,1.072444]
[1733003601507,2.68031,3730.9,3729.9,1.072444]
[1733003601735,1.6113,3731.3,3729.9,3.753424]
[1733003601898,1.6113,3731.3,3730.2,2.68075]
[1733003602094,2.68002,3731.4,3729.9,1.072444]
[1733003602095,1.6113,3731.8,3730.6,2.68052]
[1733003602444,1.6113,3731.8,3730.8,2.68037]
[1733003602821,4.29097,3731.8,3730.9,3.0]
[1733003602996,4.29097,3731.8,3730.7,5.68042]
[1733003603220,4.29097,3731.8,3730.8,2.68038]
[1733003603572,4.29097,3731.8,3730.9,3.0]
[1733003603721,1.6113,3731.8,3731.1,2.68017]
[1733003603924,1.6113,3731.8,3730.9,5.68031]
[1733003605319,4.29103,3731.8,3730.8,3.0]
[1733003605640,2.6798,3731.7,3730.8,3.0]
[1733003605946,2.67981,3731.6,3730.8,3.0]
[1733003606131,1.6113,3731.8,3730.3,3.0]
[1733003606335,2.68,3731.4,3730.3,2.68068]
[1733003606639,2.68,3731.4,3730.6,3.0]
[1733003606640,2.67996,3731.4,3730.6,3.0]
[1733003606842,2.67996,3731.4,3730.5,3.0]
[1733003607660,2.67996,3731.4,3729.9,4.072444]
[1733003607873,2.67981,3731.6,3730.6,2.68049]
[1733003608078,1.6113,3731.8,3730.5,3.0]
[1733003608377,2.67974,3731.7,3730.8,3.0]
[1733003609060,2.67987,3731.6,3730.5,3.0]
[1733003609280,2.6799,3731.5,3730.5,3.0]
[1733003609625,0.02679836,3731.7,3730.2,3.0]
[1733003609873,0.02679836,3731.7,3729.9,1.38074359]
[1733003609874,0.1906082,3731.7,3729.9,1.072444]
[1733003610037,2.68039,3730.8,3729.9,1.072444]
[1733003610238,2.67995,3731.5,3730.0,0.02680372]
[1733003610566,2.68009,3731.3,3730.2,2.6808]
[1733003610724,2.68009,3731.3,3730.3,0.02680209]
[1733003610924,2.67995,3731.5,3730.3,0.02680209]
[1733003610925,2.6801,3731.2,3730.3,0.02680209]
[1733003611227,2.6801,3731.2,3730.2,2.68076]
[1733003611427,2.67995,3731.5,3730.3,3.0268021]
[1733003611662,2.68011,3731.2,3730.3,0.0268021]
[1733003611981,2.68011,3731.2,3730.1,5.7076821]
[1733003612262,2.68011,3731.2,3730.1,5.68088]
[1733003612643,2.68011,3731.2,3730.2,2.68075]
[1733003613070,2.68011,3731.2,3730.3,3.0]
[1733003613240,1.661,3731.6,3730.3,3.0]
[1733003613445,2.67997,3731.4,3730.5,3.0]
[1733003613672,1.661,3731.6,3730.6,0.02680213]
[1733003613872,1.661,3731.6,3730.6,3.0]
[1733003613873,2.67993,3731.5,3730.6,3.0]
[1733003614370,2.67996,3731.4,3730.3,5.68068]
[1733003614577,2.67996,3731.4,3730.5,3.0]
[1733003615763,2.67988,3731.5,3730.5,5.68057]
[1733003616176,1.661,3731.6,3730.8,2.68036]
[1733003616382,1.661,3731.6,3730.9,3.0]
[1733003617180,1.661,3731.6,3730.7,3.0]
[1733003617839,2.67989,3731.5,3730.7,3.0]
[1733003618582,2.67989,3731.5,3730.8,3.0]
[1733003619377,2.67996,3731.4,3730.5,5.68055]
[1733003619588,1.661,3731.6,3730.4,3.0]
[1733003619897,2.67988,3731.5,3730.4,5.68064]
[1733003620198,2.68022,3731.1,3730.2,3.0]
[1733003620556,1.6082,3730.9,3729.6,3.21057302]
[1733003620752,2.68066,3730.5,3729.6,2.68121]
[1733003621576,2.68068,3730.4,3729.6,2.68121]
[1733003622061,2.68068,3730.4,3729.7,3.0]
[1733003622218,2.68091,3730.1,3729.5,1.072685]
[1733003622366,2.68112,3729.8,3729.5,1.072685]
[1733003622569,2.68112,3729.8,3729.0,2.68167]
[1733003622804,2.68112,3729.8,3729.1,1.072869]
[1733003622978,1.6082,3730.0,3729.2,2.68152]
[1733003623194,2.68055,3730.6,3729.1,3.754439]
[1733003623396,2.68064,3730.5,3729.4,2.68139]
[1733003623705,2.68073,3730.4,3729.6,2.68119]
[1733003623907,2.68073,3730.4,3729.7,3.0]
[1733003624298,2.68039,3730.8,3729.2,3.0]
[1733003624513,2.6807,3730.4,3729.7,3.0]
[1733003624879,2.6807,3730.4,3729.7,2.68116]
[1733003625211,2.6807,3730.4,3729.8,3.0]
[1733003625372,2.68053,3730.6,3729.8,3.0]
[1733003625572,2.68046,3730.7,3729.9,3.0]
[1733003625840,2.6804,3730.8,3729.9,3.0]
[1733003626387,2.68066,3730.5,3729.9,3.0]
[1733003627031,2.68066,3730.5,3729.1,1.072869]
[1733003627032,2.27285676,3730.9,3729.6,0.0268068]
[1733003627339,2.27285676,3730.9,3730.3,3.0]
[1733003627491,0.66295676,3730.9,3730.6,2.68051]
[1733003627922,0.66295676,3730.9,3730.4,2.68067]
[1733003628124,0.66295676,3730.9,3730.7,2.68043]
[1733003629219,0.66295676,3730.9,3730.8,5.68039]
[1733003629418,2.67974,3731.7,3731.0,2.68021]
[1733003629809,2.67974,3731.7,3731.0,2.706089]
[1733003630596,2.67982,3731.6,3731.0,0.025879]
[1733003631308,2.67982,3731.6,3731.0,2.706119]
[1733003632006,1.6395,3732.1,3731.1,5.36034]
[1733003632334,1.6395,3732.1,3731.5,2.67981]
[1733003635144,1.6395,3732.5,3732.2,2.67938]
[1733003635351,1.6395,3733.1,3732.2,5.67938]
[1733003636306,1.6395,3733.7,3732.2,5.67938]
[1733003636908,1.6395,3733.7,3732.2,6.25616864]
[1733003637121,4.3175,3734.2,3732.2,6.51396461]
[1733003637359,3.48e-06,3732.3,3732.2,6.22938]
[1733003637634,1.6395,3734.2,3733.7,2.6783]
[1733003637844,0.1,3735.5,3733.1,3.0]
[1733003637845,1.69213,3734.8,3734.0,2.67809]
[1733003637999,1.69213,3734.8,3733.8,2.67823]
[1733003638205,1.69213,3734.8,3733.8,3.0]
[1733003638534,1.69213,3734.8,3734.1,2.67801]
[1733003638734,4.36966,3734.8,3733.8,2.67821]
[1733003638936,3.382362,3734.7,3733.7,3.0]
[1733003639137,0.704712,3734.7,3733.7,3.0]
[1733003639440,2.67766,3734.6,3733.7,3.0]
[1733003639825,2.67766,3734.6,3733.9,2.67816]
[1733003639999,0.704712,3734.7,3733.9,2.6781]
[1733003640207,1.5311,3734.8,3733.7,5.6783]
[1733003640523,2.67773,3734.6,3733.7,5.6783]
[1733003640716,2.67773,3734.6,3733.8,2.6782]
[1733003641747,2.67773,3734.6,3733.9,3.0]
[1733003642412,1.5311,3734.8,3733.6,3.0]
[1733003642611,2.67777,3734.5,3733.6,3.0]
[1733003642852,2.67777,3734.5,3733.8,1.071536]
[1733003643048,2.67777,3734.5,3733.8,4.071536]
[1733003643412,2.67759,3734.7,3733.8,1.071536]
[1733003643719,0.66281,3734.5,3733.9,2.67811]
[1733003643920,4.20868,3734.8,3733.5,1.071533]
[1733003643921,1.5311,3734.8,3733.5,1.071533]
[1733003644244,1.5311,3734.8,3734.1,2.67797]
[1733003644850,1.5311,3734.8,3733.8,3.0]
[1733003645033,1.5311,3734.8,3734.1,2.67796]
[1733003645345,2.67701,3735.5,3734.4,2.67774]
[1733003645513,2.6773,3735.2,3734.4,2.67774]
[1733003646120,3.11304184,3735.4,3734.0,3.0]
[1733003646121,2.67731,3735.1,3734.2,3.0]
[1733003646313,2.67755,3734.8,3733.9,2.6781]
[1733003646526,2.67755,3734.8,3734.0,5.67808]
[1733003647080,2.67737,3735.0,3734.0,5.67808]
[1733003647081,2.67759,3734.7,3734.0,5.67808]
[1733003647211,2.67774,3734.5,3733.8,2.6782]
[1733003647411,2.67774,3734.5,3733.9,3.0]
[1733003647920,1.5289,3734.6,3733.9,3.0]
[1733003648338,2.67777,3734.5,3733.9,3.0]
[1733003648524,2.67783,3734.4,3733.5,1.071533]
[1733003648727,2.67783,3734.4,3733.7,2.6783]
[1733003649221,2.67798,3734.2,3733.5,1.071533]
[1733003649410,2.67805,3734.1,3733.5,1.071533]
[1733003650247,2.67809,3734.1,3733.5,1.071533]
[1733003650783,2.67812,3734.0,3733.5,1.071533]
[1733003651050,2.67726,3735.2,3733.5,0.02678225]
[1733003651051,1.523,3735.1,3733.5,0.02678225]
[1733003651262,2.67778,3734.5,3733.6,2.67832]
[1733003651453,4.2008,3734.4,3733.5,1.071633]
[1733003651824,2.67814,3734.0,3733.5,1.071633]
[1733003652162,4.20084,3734.4,3733.5,2.67839]
[1733003652366,2.67788,3734.3,3733.6,3.0]
[1733003652725,2.67795,3734.2,3733.4,5.67849]
[1733003653246,2.67795,3734.2,3733.4,3.0]